[Event "*** Titled Tuesday Blitz"]
[Site "Chess.com"]
[Date "2021.03.30"]
[Round "3"]
[White "TigrVShlyape"]
[Black "Horizonevent"]
[Result "1-0"]
[WhiteElo "2799"]
[BlackElo "2532"]
[TimeControl "180+1"]
[EndTime "10:28:39 PDT"]
[Termination "TigrVShlyape won by resignation"]

1. d4 {[%clk 0:03:00.9]} 1... Nf6 {[%clk 0:02:54.7]} 2. Nf3 {[%clk 0:03:00.9]}
2... d5 {[%clk 0:02:53.4]} 3. Bf4 {[%clk 0:03:00.5]} 3... c5 {[%clk 0:02:50.5]}
4. e3 {[%clk 0:03:00]} 4... Nc6 {[%clk 0:02:50.7]} 5. Nbd2 {[%clk 0:02:59.1]}
5... Qb6 {[%clk 0:02:46.1]} 6. dxc5 {[%clk 0:02:58.3]} 6... Qxb2 {[%clk
0:02:34.1]} 7. Rb1 {[%clk 0:02:55.5]} 7... Qc3 {[%clk 0:02:28.8]} 8. Bb5 {[%clk
0:02:48.6]} 8... Qxc5 {[%clk 0:02:18.3]} 9. Ne5 {[%clk 0:02:00.2]} 9... Bd7
{[%clk 0:01:47.9]} 10. Nxd7 {[%clk 0:01:57.6]} 10... Nxd7 {[%clk 0:01:45.7]} 11.
O-O {[%clk 0:01:49.8]} 11... e5 {[%clk 0:01:45.6]} 12. Bg3 {[%clk 0:01:48.4]}
12... a6 {[%clk 0:01:40.6]} 13. Be2 {[%clk 0:01:40.5]} 13... b5 {[%clk
0:01:40.6]} 14. a4 {[%clk 0:01:16.5]} 14... b4 {[%clk 0:01:38.5]} 15. Nb3 {[%clk
0:00:51.5]} 15... Qd6 {[%clk 0:01:37.5]} 16. Bf3 {[%clk 0:00:43.6]} 16... Nf6
{[%clk 0:01:30]} 17. Nd4 {[%clk 0:00:42]} 17... Rc8 {[%clk 0:00:56.7]} 18. Qd3
{[%clk 0:00:27.3]} 18... Be7 {[%clk 0:00:23.1]} 19. Qxa6 {[%clk 0:00:24.9]}
19... O-O {[%clk 0:00:19.7]} 20. Nf5 {[%clk 0:00:23.6]} 20... Qe6 {[%clk
0:00:18.7]} 21. Nxe7+ {[%clk 0:00:23.3]} 21... Qxe7 {[%clk 0:00:19.1]} 22. Rfd1
{[%clk 0:00:22.3]} 22... e4 {[%clk 0:00:17.4]} 23. Be2 {[%clk 0:00:21.9]} 23...
Ne5 {[%clk 0:00:16.5]} 24. Rd2 {[%clk 0:00:13.5]} 24... Nc4 {[%clk 0:00:15.1]}
25. Bxc4 {[%clk 0:00:11.8]} 25... Rxc4 {[%clk 0:00:14.6]} 26. Qd6 {[%clk
0:00:10.1]} 26... Qxd6 {[%clk 0:00:13.7]} 27. Bxd6 {[%clk 0:00:09.8]} 27... Rfc8
{[%clk 0:00:14.6]} 28. Bxb4 {[%clk 0:00:09.4]} 28... Rb8 {[%clk 0:00:12.5]} 29.
c3 {[%clk 0:00:08.8]} 29... Rxc3 {[%clk 0:00:12.6]} 30. h3 {[%clk 0:00:08.2]}
30... Rc4 {[%clk 0:00:12.3]} 31. Rdb2 {[%clk 0:00:07.9]} 31... h6 {[%clk
0:00:12.9]} 32. a5 {[%clk 0:00:08.1]} 32... Nd7 {[%clk 0:00:11.6]} 33. Bd2
{[%clk 0:00:07.5]} 33... Rxb2 {[%clk 0:00:11.4]} 34. Rxb2 {[%clk 0:00:07.8]}
34... Ra4 {[%clk 0:00:12.3]} 35. Bc3 {[%clk 0:00:08.1]} 35... Nc5 {[%clk
0:00:11.6]} 36. Rb5 {[%clk 0:00:08.1]} 36... Nd3 {[%clk 0:00:11.2]} 37. Rxd5
{[%clk 0:00:08.1]} 37... Rc4 {[%clk 0:00:11.9]} 38. Bd4 {[%clk 0:00:05.9]} 38...
Rc1+ {[%clk 0:00:11.8]} 39. Kh2 {[%clk 0:00:06.2]} 39... Nxf2 {[%clk 0:00:12.7]}
40. a6 {[%clk 0:00:06.2]} 40... Rc2 {[%clk 0:00:11]} 41. a7 {[%clk 0:00:06.3]}
41... Ra2 {[%clk 0:00:08.9]} 42. Rd8+ {[%clk 0:00:06.4]} 42... Kh7 {[%clk
0:00:09.8]} 43. a8=Q {[%clk 0:00:06.9]} 1-0

[Event "*** Titled Tuesday Blitz"]
[Site "Chess.com"]
[Date "2021.03.30"]
[Round "3"]
[White "ChronicUnhappiness"]
[Black "Mazanchenko_Dmitry"]
[Result "0-1"]
[WhiteElo "2336"]
[BlackElo "2212"]
[TimeControl "180+1"]
[EndTime "10:28:40 PDT"]
[Termination "Mazanchenko_Dmitry won by resignation"]

1. c4 {[%clk 0:03:00.9]} 1... g6 {[%clk 0:02:59.2]} 2. Nc3 {[%clk 0:02:59.6]}
2... Bg7 {[%clk 0:03:00.1]} 3. e4 {[%clk 0:02:59.9]} 3... d6 {[%clk 0:03:01]} 4.
f4 {[%clk 0:03:00.2]} 4... c5 {[%clk 0:03:00.2]} 5. Nf3 {[%clk 0:03:00.2]} 5...
Bg4 {[%clk 0:03:00]} 6. Be2 {[%clk 0:02:59.1]} 6... Nc6 {[%clk 0:03:00]} 7. d3
{[%clk 0:02:59.4]} 7... e6 {[%clk 0:03:00.1]} 8. O-O {[%clk 0:02:57]} 8... Nge7
{[%clk 0:03:00]} 9. Ng5 {[%clk 0:02:51.7]} 9... Bxe2 {[%clk 0:02:59.4]} 10. Qxe2
{[%clk 0:02:52.6]} 10... Nd4 {[%clk 0:02:58.9]} 11. Qf2 {[%clk 0:02:47.6]} 11...
h6 {[%clk 0:02:57.9]} 12. Nf3 {[%clk 0:02:45.9]} 12... Nec6 {[%clk 0:02:58.4]}
13. Kh1 {[%clk 0:02:31.8]} 13... f5 {[%clk 0:02:53.3]} 14. Nxd4 {[%clk
0:02:25.4]} 14... Bxd4 {[%clk 0:02:51.1]} 15. Qg3 {[%clk 0:02:08.8]} 15... Qf6
{[%clk 0:02:47.2]} 16. Ne2 {[%clk 0:02:02.3]} 16... O-O-O {[%clk 0:02:43.5]} 17.
Nxd4 {[%clk 0:01:59.7]} 17... Nxd4 {[%clk 0:02:43.5]} 18. Be3 {[%clk 0:01:54.5]}
18... fxe4 {[%clk 0:02:37.9]} 19. dxe4 {[%clk 0:01:49.3]} 19... e5 {[%clk
0:02:09.1]} 20. Bxd4 {[%clk 0:01:47.4]} 20... exd4 {[%clk 0:02:02.9]} 21. e5
{[%clk 0:01:48.3]} 21... dxe5 {[%clk 0:01:59.8]} 22. fxe5 {[%clk 0:01:48]} 22...
Qg5 {[%clk 0:01:56.4]} 23. Rf6 {[%clk 0:01:37.7]} 23... Qxg3 {[%clk 0:01:54.1]}
24. hxg3 {[%clk 0:01:37.7]} 24... g5 {[%clk 0:01:54.1]} 25. Kg1 {[%clk
0:01:31.1]} 25... Rdf8 {[%clk 0:01:49.5]} 26. Raf1 {[%clk 0:01:27.9]} 26... Rxf6
{[%clk 0:01:49.2]} 27. Rxf6 {[%clk 0:01:28.8]} 27... Re8 {[%clk 0:01:48.2]} 28.
e6 {[%clk 0:01:27.5]} 28... Kc7 {[%clk 0:01:42.6]} 29. Rxh6 {[%clk 0:01:26]}
29... Re7 {[%clk 0:01:39.9]} 30. Kf2 {[%clk 0:01:17.9]} 30... Kd6 {[%clk
0:01:39.8]} 31. Rg6 {[%clk 0:01:18.2]} 31... Rxe6 {[%clk 0:01:39.7]} 32. Rxg5
{[%clk 0:01:18.2]} 32... a6 {[%clk 0:01:31.4]} 33. a4 {[%clk 0:01:13.9]} 33...
b5 {[%clk 0:01:25.4]} 34. axb5 {[%clk 0:01:06]} 34... axb5 {[%clk 0:01:26.3]}
35. b3 {[%clk 0:00:43.3]} 35... bxc4 {[%clk 0:01:11.4]} 36. bxc4 {[%clk
0:00:42.5]} 36... Kc6 {[%clk 0:01:10.1]} 37. g4 {[%clk 0:00:39.9]} 37... Kb6
{[%clk 0:01:05.6]} 38. Rd5 {[%clk 0:00:38.2]} 38... Rc6 {[%clk 0:01:02.3]} 39.
g5 {[%clk 0:00:37.8]} 39... Ka5 {[%clk 0:01:02.7]} 40. Ke2 {[%clk 0:00:36.1]}
40... Kb4 {[%clk 0:01:02.5]} 41. Kd3 {[%clk 0:00:36.2]} 41... Re6 {[%clk
0:01:02.4]} 42. g4 {[%clk 0:00:22.9]} 42... Re3+ {[%clk 0:01:01]} 43. Kd2 {[%clk
0:00:23.3]} 43... Kxc4 {[%clk 0:00:59.8]} 44. Rd8 {[%clk 0:00:22.9]} 44... Rg3
{[%clk 0:00:58.1]} 45. g6 {[%clk 0:00:16.9]} 45... Rg2+ {[%clk 0:00:58.2]} 46.
Ke1 {[%clk 0:00:15.3]} 46... Rxg4 {[%clk 0:00:59.1]} 47. Rd6 {[%clk 0:00:13.7]}
47... Kc3 {[%clk 0:00:57.8]} 48. Ke2 {[%clk 0:00:13.9]} 48... c4 {[%clk
0:00:57.5]} 49. Kf3 {[%clk 0:00:14]} 49... Rg5 {[%clk 0:00:57]} 50. Kf4 {[%clk
0:00:13.7]} 50... Rg1 {[%clk 0:00:56.9]} 51. Ke5 {[%clk 0:00:14]} 51... d3
{[%clk 0:00:56.8]} 52. Kf6 {[%clk 0:00:14.1]} 52... d2 {[%clk 0:00:56.2]} 53. g7
{[%clk 0:00:14.4]} 53... Kc2 {[%clk 0:00:51]} 54. Kf7 {[%clk 0:00:03.4]} 54...
Rxg7+ {[%clk 0:00:48.7]} 55. Kxg7 {[%clk 0:00:03.1]} 55... d1=Q {[%clk
0:00:49.2]} 56. Rxd1 {[%clk 0:00:03.1]} 56... Kxd1 {[%clk 0:00:50.1]} 0-1

[Event "*** Titled Tuesday Blitz"]
[Site "Chess.com"]
[Date "2021.03.30"]
[Round "3"]
[White "onetowin"]
[Black "Piccadilly123"]
[Result "1-0"]
[WhiteElo "2015"]
[BlackElo "2286"]
[TimeControl "180+1"]
[EndTime "10:28:40 PDT"]
[Termination "onetowin won on time"]

1. d4 {[%clk 0:03:00.9]} 1... d5 {[%clk 0:02:59.3]} 2. Nf3 {[%clk 0:02:59.4]}
2... Nf6 {[%clk 0:02:57.8]} 3. g3 {[%clk 0:02:59.6]} 3... e6 {[%clk 0:02:55]} 4.
Bg2 {[%clk 0:02:59.9]} 4... Be7 {[%clk 0:02:55]} 5. O-O {[%clk 0:02:59.9]} 5...
O-O {[%clk 0:02:55.6]} 6. c4 {[%clk 0:03:00.3]} 6... b6 {[%clk 0:02:56.2]} 7.
Nc3 {[%clk 0:02:57.3]} 7... Bb7 {[%clk 0:02:55.8]} 8. Ne5 {[%clk 0:02:57.4]}
8... Nbd7 {[%clk 0:02:55.1]} 9. Qa4 {[%clk 0:02:52.9]} 9... c5 {[%clk
0:02:52.3]} 10. cxd5 {[%clk 0:02:38.3]} 10... Nxe5 {[%clk 0:02:31.3]} 11. dxe5
{[%clk 0:02:37.2]} 11... Nxd5 {[%clk 0:02:31.5]} 12. Rd1 {[%clk 0:02:18.4]}
12... Rc8 {[%clk 0:01:25.5]} 13. Qc4 {[%clk 0:01:41.9]} 13... Qc7 {[%clk
0:00:57.5]} 14. Bxd5 {[%clk 0:01:36.5]} 14... exd5 {[%clk 0:00:55.9]} 15. Nxd5
{[%clk 0:01:37.2]} 15... Qxe5 {[%clk 0:00:54.2]} 16. Bf4 {[%clk 0:01:26]} 16...
Qe6 {[%clk 0:00:52.7]} 17. Nxe7+ {[%clk 0:01:13.9]} 17... Qxe7 {[%clk
0:00:53.6]} 18. Bd6 {[%clk 0:01:14]} 18... Qf6 {[%clk 0:00:50.9]} 19. Bxf8
{[%clk 0:01:12.7]} 19... Rxf8 {[%clk 0:00:51.8]} 20. Rd2 {[%clk 0:00:59.8]}
20... h5 {[%clk 0:00:40.5]} 21. Rad1 {[%clk 0:00:50.5]} 21... g6 {[%clk
0:00:30]} 22. Rd7 {[%clk 0:00:40.5]} 22... Qc6 {[%clk 0:00:24.8]} 23. f3 {[%clk
0:00:40.6]} 23... b5 {[%clk 0:00:20.4]} 24. Qf4 {[%clk 0:00:31.9]} 24... c4
{[%clk 0:00:17.5]} 25. R1d6 {[%clk 0:00:25.1]} 25... Qc5+ {[%clk 0:00:16.4]} 26.
Qd4 {[%clk 0:00:25]} 26... Qxd4+ {[%clk 0:00:15.6]} 27. Rxd4 {[%clk 0:00:25.9]}
27... Bc6 {[%clk 0:00:15]} 28. Rxa7 {[%clk 0:00:24.2]} 28... Re8 {[%clk
0:00:15.5]} 29. e4 {[%clk 0:00:21.2]} 29... Rc8 {[%clk 0:00:14.5]} 30. Rd6
{[%clk 0:00:20]} 30... Kf8 {[%clk 0:00:11.7]} 31. Rf6 {[%clk 0:00:18.2]} 31...
Be8 {[%clk 0:00:12.1]} 32. Rb6 {[%clk 0:00:15.9]} 32... Kg8 {[%clk 0:00:05.1]}
33. Rbb7 {[%clk 0:00:15]} 33... Kf8 {[%clk 0:00:04.9]} 34. Kf2 {[%clk
0:00:13.7]} 34... Rc6 {[%clk 0:00:03.2]} 35. Ke3 {[%clk 0:00:13.4]} 35... Rd6
{[%clk 0:00:03.4]} 36. Kf4 {[%clk 0:00:13.2]} 36... Rd2 {[%clk 0:00:03.3]} 37.
Ke5 {[%clk 0:00:13]} 37... Rd8 {[%clk 0:00:02.1]} 38. f4 {[%clk 0:00:11.9]}
38... Rd3 {[%clk 0:00:01.4]} 39. f5 {[%clk 0:00:11.8]} 1-0

[Event "*** Titled Tuesday Blitz"]
[Site "Chess.com"]
[Date "2021.03.30"]
[Round "3"]
[White "jaskol95"]
[Black "anon102030"]
[Result "0-1"]
[WhiteElo "2411"]
[BlackElo "2739"]
[TimeControl "180+1"]
[EndTime "10:28:41 PDT"]
[Termination "anon102030 won by resignation"]

1. d4 {[%clk 0:03:00.9]} 1... Nf6 {[%clk 0:02:30.1]} 2. Bf4 {[%clk 0:02:59.6]}
2... d6 {[%clk 0:02:29.8]} 3. Nc3 {[%clk 0:02:58.6]} 3... g6 {[%clk 0:02:30.5]}
4. e4 {[%clk 0:02:58.6]} 4... Bg7 {[%clk 0:02:30]} 5. Qd2 {[%clk 0:02:59]} 5...
Nc6 {[%clk 0:02:29.3]} 6. O-O-O {[%clk 0:02:55.4]} 6... O-O {[%clk 0:02:27.4]}
7. Nf3 {[%clk 0:02:55.3]} 7... Bg4 {[%clk 0:02:25]} 8. Qe3 {[%clk 0:02:55.9]}
8... a6 {[%clk 0:02:19.3]} 9. Bh6 {[%clk 0:02:49]} 9... e6 {[%clk 0:02:11.3]}
10. h3 {[%clk 0:02:44.5]} 10... Bxf3 {[%clk 0:02:09.4]} 11. gxf3 {[%clk
0:02:45.4]} 11... Nh5 {[%clk 0:02:07.4]} 12. h4 {[%clk 0:02:36.1]} 12... Bxh6
{[%clk 0:02:01]} 13. Qxh6 {[%clk 0:02:34.8]} 13... Qf6 {[%clk 0:02:01.9]} 14. d5
{[%clk 0:02:25.3]} 14... Ne5 {[%clk 0:01:48.4]} 15. Be2 {[%clk 0:02:22.6]} 15...
Qf4+ {[%clk 0:01:44.2]} 16. Qxf4 {[%clk 0:02:21.9]} 16... Nxf4 {[%clk
0:01:45.1]} 17. Kd2 {[%clk 0:02:16.8]} 17... f5 {[%clk 0:01:42.4]} 18. dxe6
{[%clk 0:02:08.9]} 18... Nxe6 {[%clk 0:01:40.6]} 19. Nd5 {[%clk 0:01:54.7]}
19... Rae8 {[%clk 0:01:32.5]} 20. Ke3 {[%clk 0:01:43]} 20... c6 {[%clk
0:01:29.7]} 21. Nc3 {[%clk 0:01:43.3]} 21... fxe4 {[%clk 0:01:20.7]} 22. fxe4
{[%clk 0:01:41]} 22... d5 {[%clk 0:01:21.2]} 23. exd5 {[%clk 0:01:30.2]} 23...
Nf4 {[%clk 0:01:12.9]} 24. dxc6 {[%clk 0:01:18.1]} 24... Nxc6+ {[%clk
0:01:01.5]} 25. Kd2 {[%clk 0:01:15.9]} 25... Nxe2 {[%clk 0:00:55]} 26. Nxe2
{[%clk 0:01:16.8]} 26... Rxf2 {[%clk 0:00:55.4]} 27. Rhe1 {[%clk 0:00:59]} 27...
Nd4 {[%clk 0:00:54.4]} 28. Kd3 {[%clk 0:00:44.7]} 28... Rfxe2 {[%clk 0:00:50.1]}
29. Rxe2 {[%clk 0:00:44.1]} 29... Nxe2 {[%clk 0:00:51]} 30. c3 {[%clk
0:00:41.2]} 30... Nf4+ {[%clk 0:00:49.6]} 31. Kc4 {[%clk 0:00:39.6]} 31... Re7
{[%clk 0:00:45.2]} 32. Rd4 {[%clk 0:00:37.5]} 32... Ng2 {[%clk 0:00:42.4]} 33.
h5 {[%clk 0:00:33]} 33... g5 {[%clk 0:00:40.8]} 34. Kc5 {[%clk 0:00:30.1]} 34...
Nf4 {[%clk 0:00:39.4]} 35. Kd6 {[%clk 0:00:29.2]} 35... Kf7 {[%clk 0:00:36.7]}
36. b4 {[%clk 0:00:25]} 36... b5 {[%clk 0:00:27.1]} 37. Kc6 {[%clk 0:00:21.1]}
37... Re6+ {[%clk 0:00:24]} 38. Kb7 {[%clk 0:00:20.8]} 38... Nxh5 {[%clk
0:00:21.9]} 39. c4 {[%clk 0:00:20.9]} 39... bxc4 {[%clk 0:00:21.7]} 40. Rxc4
{[%clk 0:00:21.8]} 40... Nf6 {[%clk 0:00:21.3]} 41. a4 {[%clk 0:00:21.9]} 41...
g4 {[%clk 0:00:20.6]} 42. b5 {[%clk 0:00:22.2]} 42... axb5 {[%clk 0:00:20.6]}
43. axb5 {[%clk 0:00:23.1]} 43... g3 {[%clk 0:00:21.4]} 44. Rc3 {[%clk
0:00:23.7]} 44... Ne4 {[%clk 0:00:20.2]} 45. Rc2 {[%clk 0:00:22]} 45... Nd6+
{[%clk 0:00:19.4]} 46. Ka6 {[%clk 0:00:20.9]} 46... Nxb5+ {[%clk 0:00:20.3]} 47.
Kxb5 {[%clk 0:00:21.4]} 47... Rg6 {[%clk 0:00:21]} 48. Rg2 {[%clk 0:00:20.6]}
48... h5 {[%clk 0:00:21.5]} 49. Kc4 {[%clk 0:00:21.3]} 49... h4 {[%clk
0:00:22.1]} 50. Kd4 {[%clk 0:00:21.8]} 50... h3 {[%clk 0:00:22.8]} 51. Rg1
{[%clk 0:00:22.2]} 51... h2 {[%clk 0:00:23.1]} 52. Rh1 {[%clk 0:00:21.8]} 52...
g2 {[%clk 0:00:23.5]} 53. Rxh2 {[%clk 0:00:16.1]} 53... g1=Q+ {[%clk 0:00:24.4]}
54. Kc3 {[%clk 0:00:16.8]} 54... Qxh2 {[%clk 0:00:22.4]} 0-1

[Event "*** Titled Tuesday Blitz"]
[Site "Chess.com"]
[Date "2021.03.30"]
[Round "3"]
[White "Firouzja2003"]
[Black "ymoy"]
[Result "1-0"]
[WhiteElo "3096"]
[BlackElo "2723"]
[TimeControl "180+1"]
[EndTime "10:28:45 PDT"]
[Termination "Firouzja2003 won by resignation"]

1. d4 {[%clk 0:03:00.9]} 1... Nf6 {[%clk 0:02:59.8]} 2. Bg5 {[%clk 0:03:00.4]}
2... c5 {[%clk 0:02:54.3]} 3. d5 {[%clk 0:03:00.1]} 3... Qb6 {[%clk 0:02:54.1]}
4. Nc3 {[%clk 0:03:00]} 4... d6 {[%clk 0:02:50.4]} 5. e4 {[%clk 0:02:58.3]} 5...
h6 {[%clk 0:02:50.1]} 6. Bxf6 {[%clk 0:02:57.6]} 6... gxf6 {[%clk 0:02:51]} 7.
Bb5+ {[%clk 0:02:57.8]} 7... Bd7 {[%clk 0:02:50.9]} 8. a4 {[%clk 0:02:56.7]}
8... a6 {[%clk 0:02:49.7]} 9. a5 {[%clk 0:02:55]} 9... Qc7 {[%clk 0:02:49.5]}
10. Bxd7+ {[%clk 0:02:53.5]} 10... Nxd7 {[%clk 0:02:50.4]} 11. Nge2 {[%clk
0:02:52]} 11... b5 {[%clk 0:02:50.3]} 12. axb6 {[%clk 0:02:50.1]} 12... Qxb6
{[%clk 0:02:50.2]} 13. O-O {[%clk 0:02:46.6]} 13... h5 {[%clk 0:02:48.3]} 14.
Ng3 {[%clk 0:02:44.3]} 14... h4 {[%clk 0:02:41.9]} 15. Nf5 {[%clk 0:02:43.7]}
15... Ne5 {[%clk 0:02:39.8]} 16. f4 {[%clk 0:02:41.5]} 16... Ng6 {[%clk
0:02:38.4]} 17. h3 {[%clk 0:02:32.7]} 17... Bh6 {[%clk 0:02:17.8]} 18. Ne2
{[%clk 0:02:20.4]} 18... Qxb2 {[%clk 0:01:39.4]} 19. Rb1 {[%clk 0:02:20.2]}
19... Qa3 {[%clk 0:01:39.4]} 20. c4 {[%clk 0:02:19.2]} 20... Rd8 {[%clk
0:01:26.3]} 21. Rb7 {[%clk 0:02:16]} 21... Kf8 {[%clk 0:01:17.7]} 22. Kh1 {[%clk
0:02:15.1]} 22... Qa2 {[%clk 0:01:00]} 23. Qd3 {[%clk 0:02:12.1]} 23... a5
{[%clk 0:00:42.3]} 24. Nc3 {[%clk 0:02:06.1]} 24... Qa3 {[%clk 0:00:38.3]} 25.
Qc2 {[%clk 0:02:06.6]} 25... a4 {[%clk 0:00:33.8]} 26. Nb1 {[%clk 0:02:02.5]}
26... Qa1 {[%clk 0:00:33.5]} 27. Nd2 {[%clk 0:02:03.1]} 27... Qa3 {[%clk
0:00:32.9]} 28. Rf3 {[%clk 0:02:03.4]} 28... Qa1+ {[%clk 0:00:21.3]} 29. Rb1
{[%clk 0:02:03]} 29... Qxb1+ {[%clk 0:00:21.6]} 30. Qxb1 {[%clk 0:02:03.9]}
30... Bxf4 {[%clk 0:00:20.2]} 31. Rxf4 {[%clk 0:02:04.5]} 31... Nxf4 {[%clk
0:00:20.2]} 32. Qb7 {[%clk 0:02:05]} 32... Re8 {[%clk 0:00:17.3]} 33. Qa7 {[%clk
0:02:04.7]} 33... Rg8 {[%clk 0:00:17.4]} 34. Nxh4 {[%clk 0:02:04]} 34... Rh8
{[%clk 0:00:17.4]} 35. Nf5 {[%clk 0:02:04.1]} 35... Rg8 {[%clk 0:00:17.7]} 36.
g3 {[%clk 0:01:59.6]} 36... Nxh3 {[%clk 0:00:17.2]} 37. Kg2 {[%clk 0:02:00.3]}
37... Ng5 {[%clk 0:00:17.1]} 38. Qxa4 {[%clk 0:02:00.1]} 38... Rb8 {[%clk
0:00:17.1]} 39. Qd7 {[%clk 0:02:00.3]} 39... Re8 {[%clk 0:00:16.9]} 40. Ne3
{[%clk 0:01:58.3]} 40... Rh8 {[%clk 0:00:16.5]} 41. Ng4 {[%clk 0:01:58.5]} 41...
Kg7 {[%clk 0:00:16.5]} 42. Nf2 {[%clk 0:01:58.6]} 42... Kf8 {[%clk 0:00:14.3]}
43. Nf3 {[%clk 0:01:58.6]} 43... Nxf3 {[%clk 0:00:10.1]} 44. Kxf3 {[%clk
0:01:59.5]} 44... Rb8 {[%clk 0:00:10.7]} 45. Ng4 {[%clk 0:01:59.6]} 45... Rb3+
{[%clk 0:00:10.5]} 46. Ne3 {[%clk 0:02:00.1]} 46... Rb8 {[%clk 0:00:09.9]} 47.
Nf5 {[%clk 0:01:59.4]} 47... Re8 {[%clk 0:00:10.2]} 48. Qb7 {[%clk 0:01:59.3]}
48... Rg8 {[%clk 0:00:10]} 49. Qb1 {[%clk 0:01:59.5]} 49... Rh8 {[%clk
0:00:09.6]} 50. Qc1 {[%clk 0:01:59.9]} 50... Rb8 {[%clk 0:00:08.7]} 51. Qa3
{[%clk 0:01:59.5]} 51... Rg8 {[%clk 0:00:06.1]} 52. Qa7 {[%clk 0:01:59.5]} 52...
Re8 {[%clk 0:00:06.2]} 53. Ne3 {[%clk 0:01:58.7]} 53... Rh8 {[%clk 0:00:06.2]}
54. Qd7 {[%clk 0:01:59.3]} 54... Rg8 {[%clk 0:00:06.4]} 55. Qh3 {[%clk
0:01:59.5]} 55... Ra8 {[%clk 0:00:05.2]} 56. Qh6+ {[%clk 0:01:59.8]} 56... Ke8
{[%clk 0:00:05.7]} 57. Qh7 {[%clk 0:02:00]} 57... Kf8 {[%clk 0:00:05.4]} 58. Nf5
{[%clk 0:01:59.5]} 58... Ra3+ {[%clk 0:00:05.7]} 59. Kg2 {[%clk 0:02:00.1]}
59... Ra2+ {[%clk 0:00:05.8]} 60. Kf3 {[%clk 0:01:59.5]} 60... Ra3+ {[%clk
0:00:06.2]} 61. Kf4 {[%clk 0:02:00]} 61... Rg5 {[%clk 0:00:04.4]} 62. Qh6+
{[%clk 0:01:55.6]} 62... Ke8 {[%clk 0:00:04.1]} 63. Qh8+ {[%clk 0:01:54.9]}
63... Kd7 {[%clk 0:00:04.5]} 64. Qf8 {[%clk 0:01:54.7]} 64... Rxf5+ {[%clk
0:00:01.3]} 65. exf5 {[%clk 0:01:55.1]} 65... Rc3 {[%clk 0:00:01.2]} 66. Qxf7
{[%clk 0:01:55.6]} 66... Rxc4+ {[%clk 0:00:02]} 67. Ke3 {[%clk 0:01:56.2]} 67...
Rd4 {[%clk 0:00:02.1]} 68. Qe6+ {[%clk 0:01:56]} 68... Kd8 {[%clk 0:00:02.8]}
69. Qg8+ {[%clk 0:01:55.6]} 69... Kd7 {[%clk 0:00:03.2]} 70. Qa8 {[%clk
0:01:55.2]} 70... Rg4 {[%clk 0:00:02.6]} 71. Kf3 {[%clk 0:01:55]} 71... Rd4
{[%clk 0:00:02.4]} 72. Qc6+ {[%clk 0:01:55.2]} 72... Kd8 {[%clk 0:00:02]} 73. g4
{[%clk 0:01:55.7]} 73... Rc4 {[%clk 0:00:01.9]} 74. Kg3 {[%clk 0:01:55.9]} 74...
Rc3+ {[%clk 0:00:01.9]} 75. Kh4 {[%clk 0:01:56.3]} 75... Rd3 {[%clk 0:00:02.7]}
76. Kh5 {[%clk 0:01:55.8]} 76... Rh3+ {[%clk 0:00:02.1]} 77. Kg6 {[%clk
0:01:56]} 77... Rg3 {[%clk 0:00:01.7]} 78. Kf7 {[%clk 0:01:55.6]} 78... Rxg4
{[%clk 0:00:02.2]} 79. Qe8+ {[%clk 0:01:56]} 79... Kc7 {[%clk 0:00:03.1]} 80.
Qxe7+ {[%clk 0:01:56.7]} 80... Kb6 {[%clk 0:00:03.8]} 81. Qxd6+ {[%clk
0:01:57.4]} 81... Kb5 {[%clk 0:00:04.7]} 82. Qxf6 {[%clk 0:01:58]} 82... Rd4
{[%clk 0:00:04.2]} 83. d6 {[%clk 0:01:57.4]} 83... Kc6 {[%clk 0:00:04.7]} 84.
Qxd4 {[%clk 0:01:54.4]} 84... cxd4 {[%clk 0:00:04.6]} 85. Ke7 {[%clk 0:01:55.3]}
85... d3 {[%clk 0:00:05.2]} 86. d7 {[%clk 0:01:56.2]} 86... d2 {[%clk
0:00:06.1]} 87. d8=Q {[%clk 0:01:57.1]} 87... d1=Q {[%clk 0:00:06.2]} 88. Qxd1
{[%clk 0:01:57.4]} 1-0

[Event "*** Titled Tuesday Blitz"]
[Site "Chess.com"]
[Date "2021.03.30"]
[Round "3"]
[White "Michaelson_11"]
[Black "Blitzking642"]
[Result "0-1"]
[WhiteElo "2250"]
[BlackElo "2453"]
[TimeControl "180+1"]
[EndTime "10:28:45 PDT"]
[Termination "Blitzking642 won on time"]

1. e4 {[%clk 0:03:00.9]} 1... e6 {[%clk 0:03:00.2]} 2. d4 {[%clk 0:03:00.8]}
2... d5 {[%clk 0:03:00.4]} 3. Nd2 {[%clk 0:03:01.6]} 3... c5 {[%clk 0:03:00.1]}
4. exd5 {[%clk 0:03:01]} 4... Qxd5 {[%clk 0:03:00]} 5. Ngf3 {[%clk 0:02:55.8]}
5... cxd4 {[%clk 0:02:57.8]} 6. Bc4 {[%clk 0:02:55.8]} 6... Qd6 {[%clk
0:02:57.6]} 7. O-O {[%clk 0:02:55.1]} 7... Nf6 {[%clk 0:02:56.7]} 8. Nb3 {[%clk
0:02:54.6]} 8... Be7 {[%clk 0:02:56.1]} 9. Nfxd4 {[%clk 0:02:42.4]} 9... Nc6
{[%clk 0:02:56.4]} 10. Nb5 {[%clk 0:02:23.9]} 10... Qb8 {[%clk 0:02:55]} 11. Qf3
{[%clk 0:01:34.3]} 11... a6 {[%clk 0:02:52.2]} 12. N5d4 {[%clk 0:01:29.8]} 12...
Nxd4 {[%clk 0:02:38]} 13. Nxd4 {[%clk 0:01:30.7]} 13... Qc7 {[%clk 0:02:36.2]}
14. Bd3 {[%clk 0:01:23.4]} 14... O-O {[%clk 0:02:29.5]} 15. c3 {[%clk
0:00:52.1]} 15... Rd8 {[%clk 0:02:25.3]} 16. Re1 {[%clk 0:00:44.9]} 16... Bd7
{[%clk 0:02:23.6]} 17. Bf4 {[%clk 0:00:40.5]} 17... Bd6 {[%clk 0:02:22.7]} 18.
Bxd6 {[%clk 0:00:36]} 18... Qxd6 {[%clk 0:02:23.6]} 19. Rad1 {[%clk 0:00:35.2]}
19... Qb6 {[%clk 0:02:17.5]} 20. Qe2 {[%clk 0:00:23.5]} 20... Be8 {[%clk
0:01:59.4]} 21. Bb1 {[%clk 0:00:21.3]} 21... Rd6 {[%clk 0:01:45.5]} 22. Rd3
{[%clk 0:00:14.5]} 22... Rad8 {[%clk 0:01:22.5]} 23. Rf3 {[%clk 0:00:14.1]}
23... Bb5 {[%clk 0:01:08.9]} 24. Qc2 {[%clk 0:00:13.5]} 24... Kf8 {[%clk
0:00:57.1]} 25. Rxf6 {[%clk 0:00:11.4]} 25... gxf6 {[%clk 0:00:58]} 26. Qxh7
{[%clk 0:00:11.6]} 26... Rxd4 {[%clk 0:00:50.8]} 27. cxd4 {[%clk 0:00:07.1]}
27... Qxd4 {[%clk 0:00:51.1]} 28. b3 {[%clk 0:00:05.7]} 28... Ke7 {[%clk
0:00:33.7]} 29. Qh3 {[%clk 0:00:04.1]} 29... Qd2 {[%clk 0:00:23.5]} 30. Qe3
{[%clk 0:00:03.7]} 30... Qxe3 {[%clk 0:00:22.7]} 31. fxe3 {[%clk 0:00:04.6]}
31... Rd2 {[%clk 0:00:21.3]} 32. a4 {[%clk 0:00:04.3]} 32... Bc6 {[%clk
0:00:21.2]} 33. e4 {[%clk 0:00:04.3]} 33... f5 {[%clk 0:00:20.4]} 34. exf5
{[%clk 0:00:03.4]} 34... Rxg2+ {[%clk 0:00:19.3]} 35. Kf1 {[%clk 0:00:03.7]}
35... Rxh2 {[%clk 0:00:19.2]} 36. fxe6 {[%clk 0:00:04]} 36... fxe6 {[%clk
0:00:19.6]} 37. Bd3 {[%clk 0:00:02.7]} 37... Bd5 {[%clk 0:00:15.6]} 38. Re2
{[%clk 0:00:02]} 38... Rxe2 {[%clk 0:00:13.4]} 39. Kxe2 {[%clk 0:00:02]} 39...
Bxb3 {[%clk 0:00:13.9]} 40. a5 {[%clk 0:00:01.9]} 40... Kd6 {[%clk 0:00:14.2]}
41. Be4 {[%clk 0:00:01.5]} 41... Bd5 {[%clk 0:00:13.7]} 42. Bd3 {[%clk
0:00:01.4]} 42... Kc5 {[%clk 0:00:14.2]} 43. Ke3 {[%clk 0:00:02.3]} 43... e5
{[%clk 0:00:13.5]} 44. Bc2 {[%clk 0:00:01.3]} 44... Kb4 {[%clk 0:00:13.6]} 0-1